Cogmind - Beta 14 @@@ ROGUE MODE // 2024.09.09 @ 23:04:22 Player: Schmee Result: Destroyed by Y-72 Warden with Quantum Rifle Performance ------------- Evolutions (9) 4500 Regions Visited (30) 6000 Robots Destroyed (534) 2670 Value Destroyed (27477) 27477 Prototype IDs (26) 520 Alien Tech Used (0) 0 Bonus (17053) 17053 TOTAL SCORE: 58220 Bonus ------- Triggered High Security 500 High Alert Combat Kills 6563 Follower Combat Kills 3936 Entered Garrisons 1400 Used RIF Installer 3500 Network Hubs Disabled 200 Built Enhanced Grunts 300 Met R17 at Cetus 500 Met R17 at Research 2000 Friendly Fire -1846 Cogmind --------- Core Integrity 0/1600 Matter 283/300 Energy 99/100 System Corruption 45% Temperature Cool (48) Movement Core (50) Location -1/Access Parts ------- > --- POWER (3) -------- (None) > --- PROPULSION (6) --- (None) > --- UTILITY (12) ----- (None) > --- WEAPON (4) ------- (None) > --- INVENTORY (5) ---- Quantum Reactor Quantum Reactor Light Quantum Reactor Advanced Heat Sink Core Reset Matrix Peak State ------------ > --- POWER ------------ Particle Reactor Quantum Reactor Light Quantum Reactor > --- PROPULSION ------- Biometal Heavy Treads Enhanced Armored Heavy Treads Advanced Heavy Siege Treads > --- UTILITY ---------- Advanced Cooling System Huge Storage Unit Machine Analyzer Long-range Sensor Array Advanced Targeting Computer Transmission Jammer Centrium Light Armor Plating Centrium Light Armor Plating Improved Powered Armor Improved Hacking Suite Relay Coupler [Grunt] Mini Drone Bay > --- WEAPON ----------- Enhanced Nova Cannon Graviton Cannon Graviton Cannon Advanced Remote Datajack > --- INVENTORY -------- Light Quantum Reactor Centrium Heavy Treads Advanced Heat Sink Huge Storage Unit Matter Compressor Advanced Signal Interpreter Advanced Terrain Scanner Quantum Capacitor Advanced Weapon Cycler Layered Medium Armor Plating Layered Medium Armor Plating Centrium Light Armor Plating Centrium Heavy Armor Plating Graphene Brace Advanced Hardlight Generator High-powered Tractor Beam Core Reset Matrix Enhanced Nova Cannon Hypervelocity Railgun Gamma Bomb Array Fusion Bomb Launcher [Rating: 198] Favorites ----------- Power Quantum Reactor Engine Light Angular Momentum Engine Power Core Enhanced Nuclear Core Reactor Quantum Reactor Propulsion Light Treads Treads Light Treads Leg Enhanced Biometal Leg Wheel Armored Huge Wheel Hover Unit Linear Gravjet Flight Unit Cesium-ion Thruster Utility Huge Storage Unit Device Improved Cooling System Storage Huge Storage Unit Processor Machine Analyzer Hackware Improved Hacking Suite Protection Improved Light Armor Plating Weapon Enhanced Autogun Energy Gun Wave Gun Energy Cannon Compact Ion Cannon Ballistic Gun Enhanced Autogun Ballistic Cannon Light Cannon Launcher Grenade Launcher Special Weapon Remote Datajack Build | -11 -10 -10 -9 -9 -8 -8 -8 -8 -7 -7 -7 -7 -6 -6 -6 -6 -6 -6 -6 -5 -5 -4 -4 -4 -3 -2 -2 -1 -1 -1 ------- Run | Yrd Mat Min Mat Min Mat Gar Mat Gar Fac Gar Fac Gar Fac Gar Fac Ext Cet Arc Hub Fac Gar Fac Was Fac Res Res Qua Acc Gar Acc Slots Evolved 18 | . . . 2 . 2 . . . 2 . . . 2 . . . . . . 2 . 2 . . 2 2 . 2 . . Power 2 | . . . . . . . . . . . . . . . . . . . . 1 . . . . . 1 . . . . Propulsion 4 | . . . 1 . . . . . . . . . 1 . . . . . . . . . . . 2 . . . . . Utility 10 | . . . 1 . 1 . . . 2 . . . 1 . . . . . . 1 . 1 . . . 1 . 2 . . Weapon 2 | . . . . . 1 . . . . . . . . . . . . . . . . 1 . . . . . . . . Parts Attached 669 | . 13 1 27 15 22 22 27 27 6 32 12 54 23 14 22 17 6 2 4 12 38 41 2 8 53 17 16 32 53 51 Power 45 | . 1 . 6 . . 3 2 1 . 1 . 2 . 2 . . 1 . . 1 5 2 . . 6 1 3 1 4 3 Engine 14 | . 1 . 6 . . 3 1 . . 1 . 1 . 1 . . . . . . . . . . . . . . . . Core 4 | . . . . . . . 1 1 . . . 1 . . . . . . . . 1 . . . . . . . . . Reactor 27 | . . . . . . . . . . . . . . 1 . . 1 . . 1 4 2 . . 6 1 3 1 4 3 Propulsion 95 | . 2 . 7 3 6 4 11 4 1 1 1 11 5 3 4 3 2 . . 2 2 3 . . 4 1 2 1 10 2 Treads 64 | . 2 . 7 3 6 4 11 4 1 1 1 4 . . . . 2 . . 1 2 3 . . 4 1 2 1 3 1 Leg 28 | . . . . . . . . . . . . 7 5 3 4 2 . . . . . . . . . . . . 7 . Wheel 1 | . . . . . . . . . . . . . . . . 1 . . . . . . . . . . . . . . Hover 1 | . . . . . . . . . . . . . . . . . . . . 1 . . . . . . . . . . Flight 1 | . . . . . . . . . . . . . . . . . . . . . . . . . . . . . . 1 Utility 310 | . 6 . 6 4 6 7 2 11 3 15 8 17 6 2 11 6 . 1 3 4 18 23 2 6 34 11 10 24 28 36 Device 206 | . 3 . 2 2 2 5 2 4 3 7 2 4 4 1 8 4 . . 2 3 14 17 2 3 25 11 9 15 22 30 Storage 6 | . 1 . 1 . 1 . . . . . . . . . 1 . . . . . . . . . 1 . . 1 . . Processor 15 | . 1 . 1 1 1 . . . . . . 2 . . . . . . . 1 . 2 . 2 1 . . 1 . 2 Hackware 36 | . . . . . . . . 4 . 6 4 7 2 1 1 2 . . 1 . 1 1 . . . . 1 1 3 1 Protection 47 | . 1 . 2 1 2 2 . 3 . 2 2 4 . . 1 . . 1 . . 3 3 . 1 7 . . 6 3 3 Artifact . | . . . . . . . . . . . . . . . . . . . . . . . . . . . . . . . Weapon 219 | . 4 1 8 8 10 8 12 11 2 15 3 24 12 7 7 8 3 1 1 5 13 13 . 2 9 4 1 6 11 10 Energy Gun 15 | . . . 1 . . . . . . . . 5 7 1 . . 1 . . . . . . . . . . . . . Energy Cannon 32 | . . . 4 4 5 2 2 . . 1 . 1 . . 5 1 . . . 1 . 2 . . . 1 . 1 2 . Ballistic Gun 60 | . 1 . . . . 1 6 7 1 8 1 8 . 1 . 1 2 1 . 4 5 4 . 1 3 1 . . 3 1 Ballistic Cannon 39 | . 2 . 2 . 2 3 . . . . . 1 1 3 . 3 . . 1 . 5 2 . 1 4 2 . 2 2 3 Launcher 43 | . 1 1 1 4 3 2 4 2 . 2 . 5 1 . 1 . . . . . 2 3 . . 2 . . 1 2 6 Special Weapon 30 | . . . . . . . . 2 1 4 2 4 3 2 1 3 . . . . 1 2 . . . . 1 2 2 . Impact Weapon . | . . . . . . . . . . . . . . . . . . . . . . . . . . . . . . . Slashing Weapon . | . . . . . . . . . . . . . . . . . . . . . . . . . . . . . . . Piercing Weapon . | . . . . . . . . . . . . . . . . . . . . . . . . . . . . . . . Special Melee Weapon . | . . . . . . . . . . . . . . . . . . . . . . . . . . . . . . . Unidentified Prototypes 24 | . . . 3 1 . . 2 . . . . . 1 3 1 . 2 1 . 1 . 1 . . 4 1 1 . 1 1 Corrupted Parts 2 | . . . . . . . . . . . . . . . . . . . . . . . . . . . . . 1 1 System Corruption 19 | . . . . . . . . . . . . . . . . . . . . . . . . . . . . . 9 10 Parts Lost 89 | . 1 . 1 . 1 7 . 2 . 3 . 17 . 1 1 . . . 1 . 4 5 . 1 5 1 . 7 15 16 Power 17 | . . . 1 . . 2 . 1 . 1 . 1 . . . . . . . . 2 . . . 2 . . 2 3 2 Propulsion 13 | . . . . . 1 1 . . . 1 . 5 . . . . . . . . . . . . . . . 1 2 2 Utility 38 | . . . . . . 2 . 1 . 1 . 4 . . 1 . . . 1 . 2 3 . 1 2 1 . 3 7 9 Weapon 21 | . 1 . . . . 2 . . . . . 7 . 1 . . . . . . . 2 . . 1 . . 1 3 3 Highest Loss Streak 14 | . 1 . 1 . 1 2 . 1 . 2 . 14 . 1 1 . . . 1 . 2 2 . 1 4 1 . 2 5 5 To Critical Strikes 1 | . . . . . . . . . . 1 . . . . . . . . . . . . . . . . . . . . Average Slot Usage (%) 91 | . 98 100 99 100 100 99 99 99 95 98 100 96 98 100 98 91 86 86 85 85 82 81 83 83 78 81 79 82 88 71 Engine 4 | . 14 14 11 11 9 9 9 2 . 1 7 5 6 5 . . . . . . . . . . . . . . . . Reactor 4 | . . . . . . . . . . . . . . . 6 6 6 6 6 11 8 9 10 10 8 12 13 10 11 10 Treads 17 | . 26 28 32 33 27 26 27 27 23 22 23 8 . . . . 8 13 13 10 11 10 10 10 13 13 13 12 6 10 Leg 3 | . 1 . . . . . . . . . . 13 26 26 26 14 1 . . . . . . . . . . . 9 . Device 14 | . 11 14 1 2 10 15 17 11 18 19 14 10 14 20 17 19 20 15 19 18 19 23 14 14 13 16 17 19 20 18 Storage 7 | . 14 14 11 11 9 9 9 9 7 7 7 7 6 6 6 6 6 6 6 5 5 5 5 5 4 4 4 4 4 3 Processor 4 | . . . 10 11 9 2 . . . . . 4 3 . . . . . . 1 5 1 10 12 13 13 8 7 3 2 Hackware 6 | . . . . . . . . 7 7 10 15 17 19 20 14 11 13 13 7 11 6 8 5 5 4 4 5 6 9 9 Protection 6 | . . . 9 8 7 8 9 8 7 6 7 2 . . 5 6 6 10 12 5 5 5 10 7 5 4 2 7 9 5 Energy Gun 1 | . 7 . . . . . . . . . . 11 17 10 1 . 1 . . . . . . . . . . . . . Energy Cannon 4 | . . . 2 21 19 15 2 . . . . . . . 16 11 9 . . . . . . . . . 4 3 3 3 Ballistic Gun 7 | . 4 . . . . 2 24 25 21 18 19 7 . . . . 8 19 19 15 9 6 5 10 5 3 . . 1 . Ballistic Cannon 5 | . 15 17 18 . 6 8 . . . . . . 1 7 . 3 . . . . 3 4 5 5 5 8 5 7 7 6 Special Weapon 1 | . . . . . . . . . 1 2 2 1 1 1 1 3 . . . . . 2 . . . . 2 3 2 2 Peak Build Rating 198 | 6 8 9 20 26 30 33 38 39 45 47 47 53 68 88 91 91 105 110 110 126 126 133 134 130 159 180 185 198 196 192 Average Rating 81 | 6 7 8 14 20 27 28 36 37 42 44 43 46 62 69 87 85 96 108 108 121 117 128 129 129 148 174 179 187 182 157 On Entrance 82 | 6 6 8 9 20 21 29 33 37 38 45 44 43 53 67 88 88 91 105 110 108 126 116 129 129 128 158 177 180 188 187 Naked Turns 34 | . . . . . . . . . . . . . . . . . . . . . . . . . . . . . . 34 Heaviest Build 221 | 12 50 50 103 103 108 112 110 110 110 110 105 110 112 120 121 134 129 135 139 161 163 182 175 173 186 199 203 221 214 219 Greatest Support 235 | 20 40 40 60 60 62 62 62 60 60 60 60 62 70 100 100 100 160 160 160 160 160 160 155 155 235 215 235 235 235 230 Greatest Overweight (x) 6 | . 1 1 1 1 1 1 1 1 1 1 1 6 1 1 1 4 4 . . 1 1 1 1 1 . . . . 2 . Average Overweight (x) . | . . 1 . 1 1 1 1 1 1 1 1 1 1 1 1 3 2 . . . . . 1 . . . . . . . Largest Inventory Capacity 25 | 8 20 20 25 25 25 25 25 25 25 25 25 25 25 25 25 25 25 25 25 25 25 25 25 25 25 25 25 25 25 25 Average Capacity 24 | 8 17 20 24 25 25 25 25 25 25 25 25 25 25 25 25 25 25 25 25 25 25 25 25 25 25 25 25 25 25 21 Most Carried 25 | 6 17 20 25 25 25 25 25 25 25 25 25 25 25 25 25 25 25 25 25 25 25 25 25 25 25 25 25 25 25 25 Average Carried 23 | 6 12 19 23 24 24 24 24 24 24 24 24 24 24 24 24 24 24 24 24 24 24 23 25 25 24 24 24 21 22 20 Final Capacity 25 | 8 20 20 25 25 25 25 25 25 25 25 25 25 25 25 25 25 25 25 25 25 25 25 25 25 25 25 25 25 25 5 Final Carried 25 | 6 17 20 25 25 25 25 25 25 25 23 25 25 25 25 25 23 25 25 25 25 24 25 25 25 25 25 24 25 25 5 Class Distribution -------------------- 31% | Scavenger-Tank 17% | Mutant 16% | Bothacker-Tank 10% | Scavenger-Skirmisher 6% | Tank 5% | Bothacker-Gunner 5% | Scavenger-Gunner 3% | Gunner Dominant Class ---------------- Mutant | -10/Materials Mutant | -10/Mines Mutant | -9/Materials Mutant | -9/Mines Gunner | -8/Materials Tank | -8/Garrison Scavenger-Tank | -8/Materials Bothacker-Tank | -8/Garrison Bothacker-Tank | -7/Factory Bothacker-Tank | -7/Garrison Bothacker-Tank | -7/Factory Bothacker-Gunner | -7/Garrison Bothacker-Gunner | -6/Factory Scavenger-Gunner | -6/Garrison Scavenger-Tank | -6/Factory Bothacker-Tank | -6/Extension Commander-Tank | -6/Cetus Scavenger-Tank | -6/Archives Scavenger-Tank | -6/Hub_04(d) Scavenger-Tank | -5/Factory Scavenger-Tank | -5/Garrison Scavenger-Tank | -4/Factory Scavenger-Tank | -4/Waste Scavenger-Tank | -4/Factory Scavenger-Skirmisher | -3/Research Scavenger-Skirmisher | -2/Research Scavenger-Skirmisher | -2/Quarantine Scavenger-Tank | -1/Access Scavenger-Tank | -1/Garrison Scavenger-Tank | -1/Access Resources | -11 -10 -10 -9 -9 -8 -8 -8 -8 -7 -7 -7 -7 -6 -6 -6 -6 -6 -6 -6 -5 -5 -4 -4 -4 -3 -2 -2 -1 -1 -1 ----------- Run | Yrd Mat Min Mat Min Mat Gar Mat Gar Fac Gar Fac Gar Fac Gar Fac Ext Cet Arc Hub Fac Gar Fac Was Fac Res Res Qua Acc Gar Acc Matter Collected 22937 | 200 479 60 973 225 283 676 856 848 254 965 249 1378 374 258 161 664 145 94 415 65 2515 1166 427 240 2792 864 266 1194 1875 1976 Remotely 6462 | . . . 239 . . 138 . . . 173 . 129 . . . 225 . . . . 1017 423 . . 1492 372 . 499 638 1117 Salvage Created 23361 | 22 553 . 1056 282 1100 757 1380 754 279 402 98 924 676 253 289 497 111 134 696 285 1279 788 1224 293 1977 238 273 1513 2108 3120 Parts 1058 | 3 38 . 65 25 74 48 68 32 13 26 11 50 18 11 17 15 11 11 28 10 58 32 3 18 89 14 10 74 62 124 Haulers Intercepted 15 | . 2 . 5 . 1 . 6 . . . . . . . . . . . 1 . . . . . . . . . . . Recyclers Shooed 15 | . 2 . 2 . 1 . 2 . . . . . 2 . . 1 . . 1 . . 1 . . . . . 3 . . Parts Field Recycled . | . . . . . . . . . . . . . . . . . . . . . . . . . . . . . . . Retrieved Matter . | . . . . . . . . . . . . . . . . . . . . . . . . . . . . . . . Parts Self-Destructed . | . . . . . . . . . . . . . . . . . . . . . . . . . . . . . . . Prevented . | . . . . . . . . . . . . . . . . . . . . . . . . . . . . . . . Kills | -11 -10 -10 -9 -9 -8 -8 -8 -8 -7 -7 -7 -7 -6 -6 -6 -6 -6 -6 -6 -5 -5 -4 -4 -4 -3 -2 -2 -1 -1 -1 ------- Run | Yrd Mat Min Mat Min Mat Gar Mat Gar Fac Gar Fac Gar Fac Gar Fac Ext Cet Arc Hub Fac Gar Fac Was Fac Res Res Qua Acc Gar Acc Combat Hostiles Destroyed 415 | . 10 . 23 11 27 27 20 22 3 11 1 23 8 4 5 9 1 1 3 4 31 17 6 5 42 7 3 27 23 41 Melee 2 | . . . . . . . . . . . . . . . . . . . . . . . . . . . . 1 . 1 Guns 103 | . 2 . . . . 1 11 14 3 7 1 17 6 3 . . . 1 3 4 17 6 . . 6 . . . 1 . Cannons 181 | . . . 16 7 17 14 2 . . . . . . 1 4 9 1 . . . 10 7 . 5 30 6 3 20 11 18 AOE 117 | . 8 . 7 4 10 11 7 8 . 4 . 6 2 . . . . . . . 4 4 6 . 5 . . 5 8 18 Classes Destroyed 26 | 1 8 . 1 1 . 1 2 2 . . . 1 . 1 . . . . . . 2 . 1 . 2 . . . 1 2 Worker 27 | . 4 . 2 1 4 . 3 . . . 1 . . . . . . . 3 . . 2 . . . . . 2 . 5 Builder 15 | . 1 . 2 . 1 . 1 . . . . . . . 1 . . . 3 . . . . . . . . 2 . 4 Tunneler 5 | 1 1 . . . . . . . . . 1 . . . . . . . . . . . . . . 1 . 1 . . Hauler 15 | . 2 . 5 . 1 . 6 . . . . . . . . . . . 1 . . . . . . . . . . . Recycler 24 | . 3 . 2 . 1 . 2 . 1 . . . 3 . . . . . 1 . . 2 . . 2 . . 2 . 5 Mechanic 2 | . . . . . . . . . . . . . . . . . . . . . . . . . . . . . . 2 Operator 11 | . 1 . . . . . 1 . 1 . . . 1 . . . . 2 1 . . . . . . 2 2 . . . Drone 1 | . . . . . . . . . . . . . . . . . . . . . . . . . . . . . 1 . Watcher 19 | . 2 . 4 . 3 . 1 . . . . . . . . 1 2 . 1 . . . . 1 1 . . 2 . 1 Swarmer 97 | . 6 . 7 4 7 11 . 4 . 4 . 6 . . . . . . . . 13 5 . . 9 . . 7 6 8 Cutter 3 | . . . . . . . . 3 . . . . . . . . . . . . . . . . . . . . . . Saboteur 1 | . . . . . . . . . . . . . . . . . . . . . . . . . . . . . . 1 Grunt 155 | . 4 . 8 3 16 12 12 11 1 2 . 9 8 3 2 7 . . 2 3 8 2 . . 13 . 3 2 9 15 Brawler 11 | . . . . . . . . 2 . . . . . . . . . . . . 2 . . . 2 . . 1 1 3 Duelist 10 | . . . . . . . 1 . . . . 4 . . . . . . . . 1 2 . . . . . . . 2 Protector 2 | . . . . . . . . . . . . . . . . . . . . . 1 1 . . . . . . . . Sentry 40 | . . . 8 2 4 3 6 2 1 1 1 2 . . . 1 . 1 . 1 3 . . 2 . 1 . 1 . . Demolisher 2 | . . . . . . . . . . . . . . . . . . . . . 1 . . . 1 . . . . . Hunter 23 | . . . . . . . 1 . 1 2 . . . . 2 . . . 1 . . 1 . . 2 . . 4 6 3 Programmer 42 | . . . . . . 1 . . . 2 . . . . 1 . . . . . . 6 . 3 2 6 . 12 . 9 Behemoth 7 | . . . . . . . . . . . . 2 . . . 1 . . . . 2 . . . 1 . . . 1 . Compactor 6 | . . . . . . . . . . . . . . . . . . . . . . . 6 . . . . . . . Cetus Guard 1 | . . . . . . . . . . . . . . . . . 1 . . . . . . . . . . . . . Enhanced Grunt 2 | . . . . . . . . . . . . . . . . . . . 2 . . . . . . . . . . . Striker 10 | . . . . . . . . . . . . . . . . . . . . . . . . . 10 . . . . . Executioner 2 | . . . . . . . . . . . . . . 1 . . . . . . . . . . 1 . . . . . Assembled 2 | . . . . 2 . . . . . . . . . . . . . . . . . . . . . . . . . . Revision 2 | . . . . . . . . . . . . . . . . . . . . . . . . . 2 . . . . . Best Kill Streak 28 | 1 12 . 7 4 7 10 6 7 1 4 1 4 3 2 2 5 2 1 5 3 6 7 4 5 6 2 1 8 8 28 Combat Bots Only 18 | . 4 . 5 4 5 10 5 7 1 4 1 4 3 2 2 5 1 1 1 3 6 6 4 2 6 2 1 6 8 18 Max Kills in Single Turn 7 | 1 5 . 4 4 4 5 2 2 1 4 1 2 2 1 1 1 1 1 3 2 2 2 1 1 2 2 1 7 2 7 Gunslinging 1 | . . . . . . . . 1 . . . . . . . . . . . 1 1 . . . . . . . . . Exploded 5 | . 2 . 3 4 3 5 2 2 . 4 . 2 2 . . . . . . . 2 2 1 . 2 . . 5 2 5 Melee 1 | . . . . . . . . . . . . . . . . . . . . . . . . . . . . 1 . 1 Uniques/NPCs Destroyed . | . . . . . . . . . . . . . . . . . . . . . . . . . . . . . . . Combat | -11 -10 -10 -9 -9 -8 -8 -8 -8 -7 -7 -7 -7 -6 -6 -6 -6 -6 -6 -6 -5 -5 -4 -4 -4 -3 -2 -2 -1 -1 -1 -------- Run | Yrd Mat Min Mat Min Mat Gar Mat Gar Fac Gar Fac Gar Fac Gar Fac Ext Cet Arc Hub Fac Gar Fac Was Fac Res Res Qua Acc Gar Acc Hostile Shots Fired 2751 | . 37 . 72 18 83 142 53 54 31 70 23 188 29 14 64 71 13 4 40 10 207 120 . 36 287 54 8 308 371 344 Missed 827 | . 12 . 20 3 23 33 15 17 10 24 11 49 12 4 20 35 5 1 13 2 44 23 . 14 56 16 3 111 85 166 Damage Taken 34488 | . 458 . 760 332 909 1390 528 699 218 506 157 2464 373 401 659 556 240 64 834 133 2808 2138 101 267 4718 687 118 3356 4486 4128 Core 3760 | . 93 . 64 42 161 141 33 42 17 38 33 333 114 84 63 70 24 . 67 12 147 234 13 23 267 18 25 102 174 1326 Absorbed by Shields 7106 | . . . . . . 248 152 98 55 95 . 289 . . . 186 . . . 34 697 192 102 228 1378 256 . 1008 1768 320 Reduced by Siege Mode 1715 | . . . . . . . . . . . . . . . . . . . . . 196 50 . . 638 63 . 122 437 209 Redirected to Shielding 3 | . 3 . . . . . . . . . . . . . . . . . . . . . . . . . . . . . Regen/Repaired (Parts) 1081 | . . . 167 . . . 69 . . . . . . . . . . . . . . 775 . . 70 . . . . . Core Remaining (%) 69 | 100 . 62 . 73 . . . 31 . . . 39 . . . . . . 50 . 84 . . 76 79 . 97 . . . Volleys Fired 1418 | 2 30 5 68 22 50 65 56 64 13 60 14 106 44 23 35 56 13 6 30 9 94 43 25 14 105 27 44 80 117 98 Largest 4 | 2 2 1 2 2 3 3 3 3 3 3 3 3 3 3 3 3 3 3 3 3 3 3 1 3 3 3 3 3 4 3 Hottest 300 | 80 80 30 136 136 204 171 161 75 75 75 75 227 227 199 270 245 218 163 136 108 157 228 39 141 193 273 273 273 300 260 Shots Fired 2980 | 4 52 5 131 36 134 166 154 135 39 110 19 247 85 38 66 111 35 18 86 23 217 93 25 35 260 70 51 137 223 175 Gun 1201 | 4 38 . . . . 15 119 121 39 87 10 195 63 17 6 . 18 17 80 21 126 47 . 25 117 7 . . 27 2 Cannon 1505 | . 6 . 127 28 127 146 28 . . . . 25 5 14 51 93 17 1 6 2 86 39 . 10 138 63 49 132 166 146 Launcher 133 | . 8 5 4 8 7 5 7 8 . 2 . 7 3 . . . . . . . 3 2 25 . 5 . . 1 18 15 Special 141 | . . . . . . . . 6 . 21 9 20 14 7 9 18 . . . . 2 5 . . . . 2 4 12 12 Kinetic 1884 | . 21 . 120 . 29 71 119 121 39 87 10 153 5 14 2 43 16 17 86 21 212 80 . 35 255 66 8 59 108 87 Thermal 783 | . . . 7 28 98 90 28 . . . . 67 54 16 55 50 17 1 . 2 . 6 . . . 4 41 73 85 61 Explosive 111 | . 8 5 4 8 7 5 7 8 . 2 . 7 3 . . . . . . . 3 2 25 . 5 . . 1 3 8 Electromagnetic 61 | 4 23 . . . . . . . . . . . 9 1 . . 2 . . . . . . . . . . . 15 7 Robot Hit Streak 38 | 2 12 . 14 12 15 11 13 11 15 11 4 24 11 15 9 20 8 7 14 8 19 12 16 4 26 17 7 27 38 11 Robot Miss Streak 7 | 2 2 . 3 1 3 3 4 3 2 3 3 4 2 2 4 4 1 2 5 3 7 4 1 5 6 3 4 3 3 6 Penetration Max 1 | . . . . . . . . . . . . . . . . . 1 . 1 1 1 1 . . 1 1 . . . . Secondary Targets 9 | . . . . . . . 1 2 . . . 1 . . . . . . . 1 4 . . . . . . . . . Max Gunslinging Chain 2 | . . . . . . . 1 1 . . . 1 . . . . . . . 1 2 . . . . . . . . . Capacitor 113 | . . . . . . . . . . . . . . . . . . . . . . . . . . . 36 10 42 25 Shots Hit Robots 1828 | 2 33 . 84 17 88 98 98 67 31 55 11 162 58 22 32 76 21 13 52 13 128 48 20 18 178 43 18 80 164 98 Core Hits 921 | 1 29 1 43 11 61 43 53 36 10 23 5 56 28 6 9 22 11 8 27 8 57 26 12 6 75 6 8 42 81 117 Critical Kills 20 | . . . . . . . . . . . . . . . 1 . . . 2 1 6 . . 1 4 1 . 1 2 1 Critical Parts Destroyed 29 | . . . . . . 1 . 1 . . . 1 . . . . 2 . 1 1 11 1 . 3 6 1 . . . . Critical Strikes 105 | . . . 6 . . 2 . 1 . . . 3 2 1 1 . 2 . 4 2 23 4 . 7 24 4 . 7 7 5 Burn 1 | . . . . . . . . . . . . . 1 . . . . . . . . . . . . . . . . . Meltdown 6 | . . . . . . . . . . . . . . . 1 . . . . . . . . . . 1 . 1 2 1 Destroy 51 | . . . . . . 1 . 1 . . . 2 . . . . 2 . 4 2 18 1 . 5 12 1 . . 2 . Blast 47 | . . . 6 . . 1 . . . . . 1 1 1 . . . . . . 5 3 . 2 12 2 . 6 3 4 Melee Attacks . | . . . . . . . . . . . . . . . . . . . . . . . . . . . . . . . Impact . | . . . . . . . . . . . . . . . . . . . . . . . . . . . . . . . Slashing . | . . . . . . . . . . . . . . . . . . . . . . . . . . . . . . . Piercing . | . . . . . . . . . . . . . . . . . . . . . . . . . . . . . . . Sneak Attacks . | . . . . . . . . . . . . . . . . . . . . . . . . . . . . . . . Combat Hostiles . | . . . . . . . . . . . . . . . . . . . . . . . . . . . . . . . Follow-up Attacks . | . . . . . . . . . . . . . . . . . . . . . . . . . . . . . . . Damage Inflicted 74850 | 41 1528 5 1967 551 2750 2563 2664 1591 459 834 120 3421 1645 501 726 2297 698 364 2639 395 4994 3912 3350 781 9478 2326 723 5205 8051 8271 Guns 16706 | 41 332 . . . . 148 1353 1042 457 593 112 2315 976 238 66 . 340 336 1733 395 2701 1153 . 281 1752 62 . . 263 17 Cannons 38240 | . 90 . 1510 339 1760 1745 387 . . . . 542 199 263 615 2244 358 28 168 . 1915 1696 . 500 7179 2264 723 3990 5998 3727 Explosions 19293 | . 1106 . 409 171 962 670 834 549 . 241 . 564 458 . . . . . 633 . 378 1063 3350 . 547 . . 1089 1762 4507 Melee . | . . . . . . . . . . . . . . . . . . . . . . . . . . . . . . . Ramming 611 | . . 5 48 41 28 . 90 . 2 . 8 . 12 . 45 53 . . 105 . . . . . . . . 126 28 20 Kinetic 39312 | . 213 . 1449 . 359 703 1353 1042 457 593 112 2009 199 263 . 1111 340 336 1901 395 4616 2582 . 781 8931 2153 175 2173 3027 2039 Thermal 16015 | . 165 . 61 339 1401 1190 387 . . . . 848 842 210 681 1133 358 28 . . . 656 . . . 173 548 1817 3449 1729 Explosive 15868 | . 941 . 409 171 962 670 834 549 . 241 . 564 458 . . . . . . . 378 674 3350 . 547 . . 1089 861 3170 Electromagnetic 3044 | 41 209 . . . . . . . . . . . 134 28 . . . . 633 . . . . . . . . . 686 1313 Impact . | . . . . . . . . . . . . . . . . . . . . . . . . . . . . . . . Slashing . | . . . . . . . . . . . . . . . . . . . . . . . . . . . . . . . Piercing . | . . . . . . . . . . . . . . . . . . . . . . . . . . . . . . . Highest Corruption 45 | . . . . . . 1 1 1 . 1 3 3 . . . . . . 1 . . 18 35 39 3 5 6 11 24 45 Average Corruption 7 | . . . . . . 1 1 1 . 1 1 3 . . . . . . 1 . . 4 26 35 2 2 5 8 20 28 Corruption Purged 5 | . . . . . . . . . . . . . . . . . . . . . . 5 . . . . . . . . Corruption Blocked . | . . . . . . . . . . . . . . . . . . . . . . . . . . . . . . . Effects 381 | . . . . . . 4 19 16 . 6 6 43 . . . . . . . . . 14 15 25 13 9 22 44 55 90 Message Errors 86 | . . . . . . 1 5 6 . . 3 13 . . . . . . . . . 1 3 4 4 1 7 6 13 19 Matter Fused 90 | . . . . . . 1 5 2 . 2 1 11 . . . . . . . . . 2 2 4 2 4 5 18 11 20 Heat Flow Errors 40 | . . . . . . . 1 2 . 1 . 7 . . . . . . . . . 3 2 5 3 . 1 5 4 6 Energy Discharges 34 | . . . . . . 2 2 . . 1 . 2 . . . . . . . . . 3 2 3 . 1 1 3 7 7 Parts Rejected 8 | . . . . . . . 1 . . 1 . . . . . . . . . . . 1 . 1 . . . . 1 3 Parts Fused 5 | . . . . . . . . . . 1 . . . . . . . . . . . . . . . . 1 1 1 1 Data Loss (minor) 36 | . . . . . . . 1 2 . . 1 4 . . . . . . . . . 2 4 1 . 1 4 5 6 5 Data Loss (major) 15 | . . . . . . . 2 . . . . 2 . . . . . . . . . 1 2 . . 1 . 1 3 3 Misfires 20 | . . . . . . . . 2 . . 1 2 . . . . . . . . . 1 . 1 4 1 2 1 3 2 Alerts 5 | . . . . . . . 2 1 . . . . . . . . . . . . . . . . . . . 1 1 . Misdirections 12 | . . . . . . . . . . . . . . . . . . . . . . . . 1 . . . . . 11 Weapon Failures 30 | . . . . . . . . 1 . . . 2 . . . . . . . . . . . 5 . . 1 3 5 13 Overload Shots . | . . . . . . . . . . . . . . . . . . . . . . . . . . . . . . . Overflow Damage 3265 | . 45 . 36 10 43 31 8 41 . . . 6 31 . 35 34 . . 66 . 42 499 . 79 527 454 17 544 203 514 Projectiles 2470 | . 3 . 36 . 17 9 . . . . . . 31 . 25 22 . . . . 42 365 . 79 527 454 17 471 85 287 Explosions 691 | . 42 . . 10 20 22 . 41 . . . 6 . . . . . . 58 . . 134 . . . . . 35 96 227 Melee 104 | . . . . . 6 . 8 . . . . . . . 10 12 . . 8 . . . . . . . . 38 22 . Knockbacks 159 | . . . 15 1 6 8 1 . . . . . 3 . . 5 . . 2 . 4 12 . 1 40 11 1 16 17 16 Impact 5 | . . . 1 1 . . 1 . . . . . 1 . . . . . 1 . . . . . . . . . . . Kinetic 149 | . . . 13 . 6 8 . . . . . . 2 . . 5 . . 1 . 4 11 . 1 40 11 1 15 15 16 Secondary 5 | . . . 1 . . . . . . . . . . . . . . . . . . 1 . . . . . 1 2 . Self-Inflicted Damage 1832 | . 224 . 35 115 47 59 71 163 . . . 46 44 . . 26 . . 99 . . 151 205 . . . . 62 163 322 Shots 54 | . 5 . 1 4 3 2 2 3 . . . 1 2 . . . . . 1 . . 2 7 . . . . 1 8 12 Rammed 38 | . 1 1 3 2 2 . 9 . 2 . 1 . . . . 2 . . 7 . . . . . . . . 5 1 2 Targets Rammed 49 | . 1 1 5 2 3 . 10 . 3 . 2 . 2 . 2 2 . . 7 . . . . . . . . 6 1 2 Kicked 4 | . . . . . . . . . . . . . 2 . 2 . . . . . . . . . . . . . . . Crushed 7 | . . . 2 . 1 . 1 . 1 . 1 . . . . . . . . . . . . . . . . 1 . . Highest Temperature 510 | 36 54 . 156 252 315 338 225 263 . 246 36 300 297 168 510 290 50 24 54 18 363 315 253 219 235 304 365 378 442 340 Average Temperature 91 | 20 18 . 38 81 116 134 57 31 . 58 36 99 109 56 119 89 24 11 15 15 90 72 123 100 64 87 112 110 129 120 Received Heat Transfer 5470 | . 72 . 285 59 468 663 233 220 31 72 27 529 144 30 81 162 18 9 174 71 660 170 . 21 484 36 . 96 354 301 Effects 31 | . . . . . 2 3 . . . . . 1 4 . 2 . . . . . 1 . . . . . 1 4 7 6 Shutdowns 4 | . . . . . . . . . . . . . . . . . . . . . 1 . . . . . . 1 2 . Energy Bleed 11 | . . . . . . 3 . . . . . 1 1 . . . . . . . . . . . . . 1 1 2 2 Interference 10 | . . . . . 2 . . . . . . . 3 . . . . . . . . . . . . . . . 2 3 Short Circuit 1 | . . . . . . . . . . . . . . . . . . . . . . . . . . . . . 1 . Damage (minor) 4 | . . . . . . . . . . . . . . . 1 . . . . . . . . . . . . 2 . 1 Damage (major) 1 | . . . . . . . . . . . . . . . 1 . . . . . . . . . . . . . . . Siege Activations 32 | . . . . . . . . . . . . . . . . . . . . . 2 2 . . 8 4 . 8 2 6 Total Turns 801 | . . . . . . . . . . . . . . . . . . . . . 92 19 . . 232 53 . 116 140 149 Longest Duration 120 | . . . . . . . . . . . . . . . . . . . . . 55 14 . . 44 25 . 33 120 65 Robots Corrupted 12 | . . . . . 1 . 1 . . . . . . . 1 . . . 3 . . . . . . . . . 3 3 Combat Hostiles 6 | . . . . . . . . . . . . . . . . . . . . . . . . . . . . . 3 3 Parts Fried 26 | . 2 . . . 3 . 2 . . . . . . . 2 . . . 8 . . . . . . . . 1 5 3 Impact Corruptions 9 | . . . . . 1 . 1 . . . . . . . 1 1 . . 1 . . . . . . . . 2 2 . Robots Melted 7 | . . . . . . 1 . . . . . . . . 1 . . . . . . . . . . 1 . 1 2 1 Combat Hostiles 5 | . . . . . . 1 . . . . . . . . 1 . . . . . . . . . . 1 . 1 . 1 Parts Melted 32 | . . . . 1 4 2 . . . . . 1 2 . 4 . 1 . . . . . . . . . . 6 7 4 Heat Transferred 18951 | . 150 . 111 592 2516 2108 703 . . . . 1291 1554 370 925 1480 462 37 . . . 435 . . . 148 481 1443 2689 1456 Parts Sabotaged . | . . . . . . . . . . . . . . . . . . . . . . . . . . . . . . . Parts Stolen . | . . . . . . . . . . . . . . . . . . . . . . . . . . . . . . . Parts Stripped . | . . . . . . . . . . . . . . . . . . . . . . . . . . . . . . . Power Chain Reactions 5 | . 2 . . . . . . . . . . . . . . . . . . . . . . . . . . . 2 1 Alert | -11 -10 -10 -9 -9 -8 -8 -8 -8 -7 -7 -7 -7 -6 -6 -6 -6 -6 -6 -6 -5 -5 -4 -4 -4 -3 -2 -2 -1 -1 -1 ------- Run | Yrd Mat Min Mat Min Mat Gar Mat Gar Fac Gar Fac Gar Fac Gar Fac Ext Cet Arc Hub Fac Gar Fac Was Fac Res Res Qua Acc Gar Acc Peak Influence 2288 | 5 495 55 383 284 462 1152 561 945 611 1258 729 1344 710 532 319 385 455 292 1254 736 2073 1329 540 546 722 414 192 652 1371 2288 Initial 1087 | . 3 31 . 73 14 242 561 158 495 427 660 307 705 330 279 130 114 102 102 612 375 1087 420 378 189 405 145 47 493 822 Average 514 | 2 231 19 194 110 322 800 237 660 548 902 589 766 481 437 198 119 270 260 584 606 1279 1157 521 399 253 282 103 355 1059 1318 Maximum Alert Level 5 | . 2 . 1 1 2 4 2 3 2 4 3 4 3 2 1 1 2 1 4 3 5 4 2 2 3 2 . 2 4 5 Low Security (%) 27 | 100 52 100 43 71 16 . 39 5 . . . . . . 60 66 6 14 16 . . . . . 54 25 100 27 . . Level 1 23 | . 34 . 56 28 45 1 54 12 . . 9 9 21 30 39 33 86 85 13 . 2 . . 70 27 45 . 22 . . Level 2 21 | . 13 . . . 37 28 5 33 100 21 72 35 55 69 . . 6 . 46 99 23 . 100 29 16 28 . 49 5 . Level 3 14 | . . . . . . 55 . 47 . 42 18 37 23 . . . . . 18 . 7 36 . . 2 . . . 32 44 Level 4 11 | . . . . . . 14 . . . 36 . 17 . . . . . . 5 . 38 63 . . . . . . 61 36 Level 5 1 | . . . . . . . . . . . . . . . . . . . . . 28 . . . . . . . . 1 High Security . | . . . . . . . . . . . . . . . . . . . . . . . . . . . . . . 17 Max Security . | . . . . . . . . . . . . . . . . . . . . . . . . . . . . . . . Squads Dispatched 83 | . 2 . 1 . 3 . 3 . 3 . 3 . 6 . 4 4 . . 5 1 . 5 . 1 7 2 2 5 . 26 Investigation 14 | . 1 . 1 . 1 . 2 . . . . . 1 . . 4 . . 1 . . . . . 3 . . . . . Extermination 16 | . . . . . . . . . . . . . 1 . 3 . . . . . . 2 . 1 . 2 2 3 . 2 Reinforcement 16 | . 1 . . . 1 . . . 1 . 1 . 3 . 1 . . . 2 1 . . . . 4 . . 1 . . Assault 21 | . . . . . . . . . . . . . . . . . . . 2 . . 3 . . . . . 1 . 15 Garrison 16 | . . . . . 1 . 1 . 2 . 2 . 1 . . . . . . . . . . . . . . . . 9 Intercept . | . . . . . . . . . . . . . . . . . . . . . . . . . . . . . . . Searches Triggered . | . . . . . . . . . . . . . . . . . . . . . . . . . . . . . . . Construction Impeded . | . . . . . . . . . . . . . . . . . . . . . . . . . . . . . . . Haulers Reinforced 3 | . . . . . . . . . 1 . . . 1 . . . . . . . . . . . 1 . . . . . Active Scanning Responses . | . . . . . . . . . . . . . . . . . . . . . . . . . . . . . . . Cargo Convoy Interrupts . | . . . . . . . . . . . . . . . . . . . . . . . . . . . . . . . Stealth | -11 -10 -10 -9 -9 -8 -8 -8 -8 -7 -7 -7 -7 -6 -6 -6 -6 -6 -6 -6 -5 -5 -4 -4 -4 -3 -2 -2 -1 -1 -1 --------- Run | Yrd Mat Min Mat Min Mat Gar Mat Gar Fac Gar Fac Gar Fac Gar Fac Ext Cet Arc Hub Fac Gar Fac Was Fac Res Res Qua Acc Gar Acc Distress Signals 25 | . 1 . 4 . 1 . 5 . . . . . . . . . . . 2 . . 1 . 1 6 . . 3 . 1 Communications Jammed 186 | . . . . . . . . . . . . . . . 28 . . . 8 . 1 20 . . . . . 7 6 116 Distress Signals 178 | . . . . . . . . . . . . . . . 28 . . . 7 . 1 20 . . . . . 7 . 115 Times Spotted 790 | . 21 . 44 11 41 26 34 23 6 25 10 47 17 10 20 25 10 8 24 7 60 20 6 10 59 9 14 61 27 115 Peak Tracking Total 23 | . 4 . 8 4 6 9 4 9 2 4 3 7 4 5 3 4 4 2 5 2 8 5 4 4 6 2 3 17 6 23 Tactical Retreats 40 | . . . 2 . 2 2 . 2 . 2 2 1 . . 1 1 . . 2 . 6 . . . 5 . . 4 1 7 Traps | -11 -10 -10 -9 -9 -8 -8 -8 -8 -7 -7 -7 -7 -6 -6 -6 -6 -6 -6 -6 -5 -5 -4 -4 -4 -3 -2 -2 -1 -1 -1 ------- Run | Yrd Mat Min Mat Min Mat Gar Mat Gar Fac Gar Fac Gar Fac Gar Fac Ext Cet Arc Hub Fac Gar Fac Was Fac Res Res Qua Acc Gar Acc Traps Triggered 62 | . . . 2 . 1 11 2 9 . 8 . 5 1 1 3 2 . . 1 . 3 2 . . 1 2 . 1 5 2 Indirectly 1 | . . . . . . . . . . . . . . . . . . . 1 . . . . . . . . . . . Trap Hack Attempts . | . . . . . . . . . . . . . . . . . . . . . . . . . . . . . . . Triggered . | . . . . . . . . . . . . . . . . . . . . . . . . . . . . . . . Disarmed . | . . . . . . . . . . . . . . . . . . . . . . . . . . . . . . . Reprogrammed . | . . . . . . . . . . . . . . . . . . . . . . . . . . . . . . . Reused . | . . . . . . . . . . . . . . . . . . . . . . . . . . . . . . . Traps Extracted . | . . . . . . . . . . . . . . . . . . . . . . . . . . . . . . . Installed . | . . . . . . . . . . . . . . . . . . . . . . . . . . . . . . . Triggered 1 | . 1 . . . . . . . . . . . . . . . . . . . . . . . . . . . . . Machines | -11 -10 -10 -9 -9 -8 -8 -8 -8 -7 -7 -7 -7 -6 -6 -6 -6 -6 -6 -6 -5 -5 -4 -4 -4 -3 -2 -2 -1 -1 -1 ---------- Run | Yrd Mat Min Mat Min Mat Gar Mat Gar Fac Gar Fac Gar Fac Gar Fac Ext Cet Arc Hub Fac Gar Fac Was Fac Res Res Qua Acc Gar Acc Machines Disabled 75 | . 5 . 2 2 3 3 . 5 . 4 . 5 1 3 . 1 1 3 6 . 7 12 . . 1 . 1 3 3 4 Max in Single Turn 5 | . 4 . 1 2 2 1 . 1 . 1 . 1 1 1 . . 1 . 2 . 1 5 . . 1 . 1 1 1 1 Garrison Access 4 | . . . . . . . . . . . . . . . . . . . 1 . . 1 . . . . 1 1 . . Garrison Relay 20 | . . . . . . 3 . 3 . 4 . 5 . 2 . . . . . . 1 . . . . . . . 2 . Phase Generator 1 | . . . . . . . . . . . . . . 1 . . . . . . . . . . . . . . . . Network Hub 1 | . . . . . . . . . . . . . . . . . . . 1 . . . . . . . . . . . Energy Cycler 1 | . . . . . . . . . . . . . . . . . . . . . . . . . . . . . . 1 Machines Repaired . | . . . . . . . . . . . . . . . . . . . . . . . . . . . . . . . Machines Dismantled . | . . . . . . . . . . . . . . . . . . . . . . . . . . . . . . . Machines Sabotaged . | . . . . . . . . . . . . . . . . . . . . . . . . . . . . . . . Overloaded Fab Kills . | . . . . . . . . . . . . . . . . . . . . . . . . . . . . . . . Hacking | -11 -10 -10 -9 -9 -8 -8 -8 -8 -7 -7 -7 -7 -6 -6 -6 -6 -6 -6 -6 -5 -5 -4 -4 -4 -3 -2 -2 -1 -1 -1 --------- Run | Yrd Mat Min Mat Min Mat Gar Mat Gar Fac Gar Fac Gar Fac Gar Fac Ext Cet Arc Hub Fac Gar Fac Was Fac Res Res Qua Acc Gar Acc Machines Accessed 93 | . 5 . 5 2 4 1 8 1 1 2 3 1 3 . 6 16 1 . 3 3 1 7 . . 4 4 7 4 1 . Terminals 73 | . 5 . 4 1 2 1 6 1 . 2 1 1 1 . 5 16 1 . 3 2 1 5 . . 2 4 6 2 1 . Fabricators 2 | . . . . . . . . . . . . . 1 . 1 . . . . . . . . . . . . . . . Repair Stations 7 | . . . 1 . 1 . 1 . . . 1 . . . . . . . . . . 1 . . 2 . . . . . Recycling Units . | . . . . . . . . . . . . . . . . . . . . . . . . . . . . . . . Scanalyzers . | . . . . . . . . . . . . . . . . . . . . . . . . . . . . . . . Garrison Access 10 | . . . . . 1 . 1 . 1 . 1 . 1 . . . . . . 1 . 1 . . . . 1 2 . . Total Hacks 197 | . 10 . 18 3 9 2 22 1 1 3 3 2 5 . 11 31 2 . 5 6 1 13 . . 11 13 16 8 1 . Successful 91 | . 6 . 9 3 5 . 11 . 1 . 1 1 3 . 5 12 . . 1 1 1 8 . . 4 8 7 4 . . Failed 104 | . 3 . 8 . 4 2 11 1 . 3 2 1 2 . 6 19 2 . 4 5 . 5 . . 7 5 9 4 1 . Catastrophic 28 | . . . . . 1 2 3 1 . 1 1 . . . 3 4 . . 3 1 . 3 . . . . 5 . . . Database Lockouts 2 | . 1 . 1 . . . . . . . . . . . . . . . . . . . . . . . . . . . Manual 91 | . 11 . 13 . 5 2 16 1 . 2 1 1 2 . 5 7 1 . 1 2 1 7 . . 2 1 9 . 1 . Terminals 158 | . 10 . 14 2 6 2 16 1 . 3 1 2 2 . 10 31 2 . 5 5 1 8 . . 3 13 14 6 1 . Fabricators 3 | . . . . . . . . . . . . . 2 . 1 . . . . . . . . . . . . . . . Repair Stations 24 | . . . 4 . 2 . 5 . . . 1 . . . . . . . . . . 4 . . 8 . . . . . Recycling Units . | . . . . . . . . . . . . . . . . . . . . . . . . . . . . . . . Scanalyzers . | . . . . . . . . . . . . . . . . . . . . . . . . . . . . . . . Garrison Access 11 | . . . . . 1 . 1 . 1 . 1 . 1 . . . . . . 1 . 1 . . . . 2 2 . . Terminal Hacks 48 | . 2 . 4 3 2 . 4 . . . . 1 . . 2 12 . . 1 . 1 2 . . . 7 5 2 . . Record 1 | . . . . . . . . . . . . . . . . . . . . . . . . . . 1 . . . . Part Schematic 1 | . . . . . . . . . . . . . . . . 1 . . . . . . . . . . . . . . Robot Analysis 3 | . 1 . 1 . . . 1 . . . . . . . . . . . . . . . . . . . . . . . Prototype ID Bank 1 | . . . . . . . . . . . . . . . . . . . . . . . . . . 1 . . . . Open Door 11 | . . . . 1 . . . . . . . . . . . 9 . . . . . . . . . . 1 . . . Open DSF 1 | . . . . . . . . . . . . . . . . . . . . . . 1 . . . . . . . . Level Access Points 1 | . . . . . . . . . . . . . . . . . . . . . . . . . . . 1 . . . Branch Access Points 3 | . . . . . . . . . . . . . . . . . . . . . . . . . . 1 1 1 . . Emergency Access Points 1 | . . . . . . . . . . . . 1 . . . . . . . . . . . . . . . . . . Terminal Index 2 | . . . . . . . . . . . . . . . 1 . . . . . . . . . . 1 . . . . Scanalyzer Index 1 | . . . . . . . . . . . . . . . . . . . . . . . . . . 1 . . . . Alert Level 2 | . . . 1 . 1 . . . . . . . . . . . . . . . . . . . . . . . . . Unreport Threat 12 | . 1 . 1 . 1 . 3 . . . . . . . . 2 . . 1 . . 1 . . . 1 . 1 . . Locate Traps 2 | . . . . . . . . . . . . . . . . . . . . . . . . . . 1 1 . . . Dispatch Records 1 | . . . . 1 . . . . . . . . . . . . . . . . . . . . . . . . . . Recall Extermination 1 | . . . . . . . . . . . . . . . . . . . . . . . . . . . 1 . . . Hauler Manifests 2 | . . . 1 . . . . . . . . . . . 1 . . . . . . . . . . . . . . . Zone Layout 1 | . . . . 1 . . . . . . . . . . . . . . . . . . . . . . . . . . Garrison Registry 1 | . . . . . . . . . . . . . . . . . . . . . 1 . . . . . . . . . Fabricator Hacks 2 | . . . . . . . . . . . . . 1 . 1 . . . . . . . . . . . . . . . Build 2 | . . . . . . . . . . . . . 1 . 1 . . . . . . . . . . . . . . . Repair Station Hacks 15 | . . . 4 . . . 4 . . . . . . . . . . . . . . 4 . . 3 . . . . . Scan Component 8 | . . . 2 . . . 2 . . . . . . . . . . . . . . 2 . . 2 . . . . . Repair 7 | . . . 2 . . . 2 . . . . . . . . . . . . . . 2 . . 1 . . . . . Recycling Unit Hacks . | . . . . . . . . . . . . . . . . . . . . . . . . . . . . . . . Scanalyzer . | . . . . . . . . . . . . . . . . . . . . . . . . . . . . . . . Garrison Access Hacks 11 | . . . . . 1 . 1 . 1 . 1 . 1 . . . . . . 1 . 1 . . . . 2 2 . . Unlock Access 7 | . . . . . 1 . 1 . 1 . 1 . 1 . . . . . . 1 . . . . . . . 1 . . Seal Access 3 | . . . . . . . . . . . . . . . . . . . . . . 1 . . . . 1 1 . . Coupler Status 1 | . . . . . . . . . . . . . . . . . . . . . . . . . . . 1 . . . Unauthorized Hacks 15 | . 4 . 1 . 2 . 2 . . . . . 1 . 2 . . . . . . 1 . . 1 1 . . . . Terminals 15 | . 4 . 1 . 2 . 2 . . . . . 1 . 2 . . . . . . 1 . . 1 1 . . . . Botnet 13 | . 2 . 1 . 2 . 2 . . . . . 1 . 2 . . . . . . 1 . . 1 1 . . . . Skim 2 | . 2 . . . . . . . . . . . . . . . . . . . . . . . . . . . . . Fabricators . | . . . . . . . . . . . . . . . . . . . . . . . . . . . . . . . Repair Stations . | . . . . . . . . . . . . . . . . . . . . . . . . . . . . . . . Recycling Units . | . . . . . . . . . . . . . . . . . . . . . . . . . . . . . . . Scanalyzers . | . . . . . . . . . . . . . . . . . . . . . . . . . . . . . . . Garrison Access . | . . . . . . . . . . . . . . . . . . . . . . . . . . . . . . . Data Cores Recovered 3 | . . . . . . . . . 1 . . . . . . . . . . . . . . . . 1 1 . . . Used . | . . . . . . . . . . . . . . . . . . . . . . . . . . . . . . . Hacking Detections 59 | . 2 . 4 1 2 1 5 1 . 2 2 . 1 . 5 9 1 . 3 2 . 3 . . 4 4 4 2 1 . Full Trace Events 6 | . . . . . . . 1 . . . . . . . . 4 . . 1 . . . . . . . . . . . Feedback Events . | . . . . . . . . . . . . . . . . . . . . . . . . . . . . . . . Feedback Blocked . | . . . . . . . . . . . . . . . . . . . . . . . . . . . . . . . Robot Schematics Acquired . | . . . . . . . . . . . . . . . . . . . . . . . . . . . . . . . Robots Built . | . . . . . . . . . . . . . . . . . . . . . . . . . . . . . . . Authchips . | . . . . . . . . . . . . . . . . . . . . . . . . . . . . . . . Time . | . . . . . . . . . . . . . . . . . . . . . . . . . . . . . . . Total Robot Build Rating . | . . . . . . . . . . . . . . . . . . . . . . . . . . . . . . . Part Schematics Acquired 1 | . . . . . . . . . . . . . . . . 1 . . . . . . . . . . . . . . Parts Built 4 | . . . . . . . . . . . . . 2 . 2 . . . . . . . . . . . . . . . Authchips . | . . . . . . . . . . . . . . . . . . . . . . . . . . . . . . . Time 245 | . . . . . . . . . . . . . 117 . 128 . . . . . . . . . . . . . . . Total Part Build Rating 30 | . . . . . . . . . . . . . 14 . 16 . . . . . . . . . . . . . . . Parts Repaired 7 | . . . 2 . . . 2 . . . . . . . . . . . . . . 2 . . 1 . . . . . Time 469 | . . . 58 . . . 98 . . . . . . . . . . . . . . 177 . . 136 . . . . . Parts Recycled . | . . . . . . . . . . . . . . . . . . . . . . . . . . . . . . . Recycled Matter . | . . . . . . . . . . . . . . . . . . . . . . . . . . . . . . . Retrieved Matter . | . . . . . . . . . . . . . . . . . . . . . . . . . . . . . . . Retrieved Components . | . . . . . . . . . . . . . . . . . . . . . . . . . . . . . . . Parts Scanalyzed . | . . . . . . . . . . . . . . . . . . . . . . . . . . . . . . . Part Schematics Acquired . | . . . . . . . . . . . . . . . . . . . . . . . . . . . . . . . Parts Damaged . | . . . . . . . . . . . . . . . . . . . . . . . . . . . . . . . Bothacking | -11 -10 -10 -9 -9 -8 -8 -8 -8 -7 -7 -7 -7 -6 -6 -6 -6 -6 -6 -6 -5 -5 -4 -4 -4 -3 -2 -2 -1 -1 -1 ------------ Run | Yrd Mat Min Mat Min Mat Gar Mat Gar Fac Gar Fac Gar Fac Gar Fac Ext Cet Arc Hub Fac Gar Fac Was Fac Res Res Qua Acc Gar Acc Used RIF Installer 7 | . . . . . . 1 . 1 . 1 . 1 . 1 . . . . . . 2 . . . . . . . . . Hotswap 1 | . . . . . . . . . . . . . . . . . . . . . 1 . . . . . . . . . Command Fork 2 | . . . . . . . . . . . . 1 . . . . . . . . 1 . . . . . . . . . Signal Jammer 1 | . . . . . . . . . . . . . . 1 . . . . . . . . . . . . . . . . Watcher Feeds 1 | . . . . . . . . 1 . . . . . . . . . . . . . . . . . . . . . . Patrol Navigation 1 | . . . . . . . . . . 1 . . . . . . . . . . . . . . . . . . . . Robots Hacked 55 | . . . . . . . . 3 . 9 3 9 3 3 3 3 . . . . 1 2 . . . . 2 3 5 6 Non-combat 5 | . . . . . . . . . . . 1 . 1 . . 1 . . . . . 1 . . . . . . . 1 Combat 50 | . . . . . . . . 3 . 9 2 9 2 3 3 2 . . . . 1 1 . . . . 2 3 5 5 Robot Hacks Applied 61 | . . . . . . . . 3 . 9 4 10 5 3 3 4 . . . . 1 2 . . . . 2 3 5 7 find_chute 1 | . . . . . . . . . . . . . . . . . . . . . . 1 . . . . . . . . drop_inventory 1 | . . . . . . . . . . . . . . . . . . . . . . . . . . . . . . 1 purge_threat 5 | . . . . . . . . . . . 2 . 3 . . . . . . . . . . . . . . . . . scatter_targeting 1 | . . . . . . . . . . . . . . . . . . . . . . . . . . . . . 1 . mark_system 1 | . . . . . . . . . . . . 1 . . . . . . . . . . . . . . . . . . overload_power 1 | . . . . . . . . . . . . 1 . . . . . . . . . . . . . . . . . . amplify_resonance 9 | . . . . . . . . 1 . 1 . . . . . 1 . . . . . . . . . . . 2 1 3 disable_weapons 1 | . . . . . . . . . . . . 1 . . . . . . . . . . . . . . . . . . reboot_system 5 | . . . . . . . . . . 1 . . . . . . . . . . . . . . . . 2 1 . 1 go_dormant 1 | . . . . . . . . . . . . . . . . 1 . . . . . . . . . . . . . . overwrite_iff 1 | . . . . . . . . . . . . . . . . . . . . . . . . . . . . . . 1 formatsys_high 34 | . . . . . . . . 2 . 7 2 7 2 3 3 2 . . . . 1 1 . . . . . . 3 1 Relay Couplers Released 88 | . . . . . . 18 . 11 . 14 3 20 . 7 . . . . 1 . 5 . . . . . . . 9 . Machine Destruction 81 | . . . . . . 14 . 11 . 14 . 20 . 7 . . . . 1 . 5 . . . . . . . 9 . Programmers 7 | . . . . . . 4 . . . . 3 . . . . . . . . . . . . . . . . . . . Attached 34 | . . . . . . . . 4 . 6 4 7 2 1 1 2 . . . . 1 1 . . . . 1 . 3 1 Fabnet Peak Effective % . | . . . . . . . . . . . . . . . . . . . . . . . . . . . . . . . Robots Rewired 6 | . . . . . . . . . . . . . . . . 3 . . . . . 1 . . . . . . 2 . Allies Hacked 1 | . . . . . . . . . . . . . 1 . . . . . . . . . . . . . . . . . Hacks Repelled . | . . . . . . . . . . . . . . . . . . . . . . . . . . . . . . . Allies | -11 -10 -10 -9 -9 -8 -8 -8 -8 -7 -7 -7 -7 -6 -6 -6 -6 -6 -6 -6 -5 -5 -4 -4 -4 -3 -2 -2 -1 -1 -1 -------- Run | Yrd Mat Min Mat Min Mat Gar Mat Gar Fac Gar Fac Gar Fac Gar Fac Ext Cet Arc Hub Fac Gar Fac Was Fac Res Res Qua Acc Gar Acc Total Allies 63 | . . . . . . . . 2 . 7 2 10 2 3 4 16 5 . . . 3 2 . . . . . . 5 2 Largest Group 15 | . . . . . . . . 1 1 4 3 4 2 3 4 12 15 14 9 . 2 2 . . . . . . 2 1 Highest-Rated Group 800 | . . . . . . . . 15 15 112 82 93 65 112 115 508 800 769 599 . 190 90 . . . . . . 198 64 Highest-Rated Ally 159 | . . . . . . . . 15 15 32 32 32 36 47 36 159 159 96 96 . 95 47 . . . . . . 99 64 Total Orders 34 | . . . . . . . . . . 6 . 2 . . 4 . . . . 2 . 6 . . 5 . . 3 3 3 STAY 8 | . . . . . . . . . . 3 . 1 . . 2 . . . . . . . . . . . . . 2 . FOLLOW 7 | . . . . . . . . . . 3 . 1 . . 2 . . . . . . . . . . . . . 1 . EXPLORE 14 | . . . . . . . . . . . . . . . . . . . . 2 . 4 . . 4 . . 2 . 2 RETURN 5 | . . . . . . . . . . . . . . . . . . . . . . 2 . . 1 . . 1 . 1 Ally Attacks 551 | . . . . . . . . 3 7 32 20 80 23 24 16 63 42 46 82 . 72 5 . . 4 . . . 17 15 Total Damage 17721 | . . . . . . . . 96 135 956 535 1563 662 692 509 1856 1384 1503 3379 . 3047 35 . . 12 . . . 610 747 Kills 112 | . . . . . . . . . 1 9 7 13 6 2 6 10 7 5 21 . 20 . . . . . . . 2 3 Allies Corrupted 3 | . . . . . . . . . . . . . . . . . . . 1 . . 2 . . . . . . . . Allies Melted . | . . . . . . . . . . . . . . . . . . . . . . . . . . . . . . . Intel | -11 -10 -10 -9 -9 -8 -8 -8 -8 -7 -7 -7 -7 -6 -6 -6 -6 -6 -6 -6 -5 -5 -4 -4 -4 -3 -2 -2 -1 -1 -1 ------- Run | Yrd Mat Min Mat Min Mat Gar Mat Gar Fac Gar Fac Gar Fac Gar Fac Ext Cet Arc Hub Fac Gar Fac Was Fac Res Res Qua Acc Gar Acc Robot Analysis Total 3 | . 1 . 1 . . . 1 . . . . . . . . . . . . . . . . . . . . . . . Derelict Logs Recovered 3 | . . 1 . 2 . . . . . . . . . . . . . . . . . . . . . . . . . . Drone Launches 17 | . . . . . . . . . . . . . . . . . . . . 2 . 5 . . 5 . . 3 . 2 Drone Recoveries 7 | . . . . . . . . . . . . . . . . . . . . . . 3 . . 2 . . 1 . 1 Exploration | -11 -10 -10 -9 -9 -8 -8 -8 -8 -7 -7 -7 -7 -6 -6 -6 -6 -6 -6 -6 -5 -5 -4 -4 -4 -3 -2 -2 -1 -1 -1 ------------- Run | Yrd Mat Min Mat Min Mat Gar Mat Gar Fac Gar Fac Gar Fac Gar Fac Ext Cet Arc Hub Fac Gar Fac Was Fac Res Res Qua Acc Gar Acc Turns Passed 36143 | 15 1451 849 2343 1364 1346 1483 2414 1622 246 1964 654 2182 719 543 1553 1238 677 238 543 637 1671 1257 266 438 2700 909 990 1331 1204 1296 Spaces Moved 15216 | 8 623 347 882 520 471 503 889 588 85 750 251 723 299 247 783 601 371 130 275 306 775 462 92 175 1233 411 500 631 444 841 Core 278 | . . . . . . . . . . . . . . . . . . . . . . . . . . . . . . 278 Treads 11992 | . 559 347 882 520 471 503 889 588 85 750 251 269 . . . . 177 130 275 306 775 462 92 175 1233 411 500 631 254 457 Legs 2158 | 8 64 . . . . . . . . . . 454 299 247 783 113 . . . . . . . . . . . . 190 . Wheels 682 | . . . . . . . . . . . . . . . . 488 194 . . . . . . . . . . . . . Hover . | . . . . . . . . . . . . . . . . . . . . . . . . . . . . . . . Flight 106 | . . . . . . . . . . . . . . . . . . . . . . . . . . . . . . 106 Fastest Speed 35 | 120 120 240 160 240 235 235 235 240 240 240 240 235 190 180 180 160 160 160 160 160 160 160 237 152 155 170 155 155 155 35 Average Speed 196 | 120 213 240 222 240 236 235 238 240 240 240 240 253 190 190 180 170 160 160 160 166 163 227 237 211 159 170 162 155 181 107 Slowest Speed 540 | 120 240 240 240 240 240 235 240 240 240 240 240 540 192 192 180 240 160 160 160 240 240 250 237 237 173 173 170 155 320 160 Overloaded Moves . | . . . . . . . . . . . . . . . . . . . . . . . . . . . . . . . Propulsion Burnouts . | . . . . . . . . . . . . . . . . . . . . . . . . . . . . . . . Robots Hopped . | . . . . . . . . . . . . . . . . . . . . . . . . . . . . . . . Cave-ins Triggered . | . . . . . . . . . . . . . . . . . . . . . . . . . . . . . . . Exploration Rate (%) 47 | 2 92 72 70 85 43 59 64 63 2 65 9 67 13 45 27 81 79 78 43 18 57 30 87 7 50 14 47 20 41 37 Regions Visited 30 Branch Regions 7 Pre-discovered Areas . | . . . . . . . . . . . . . . . . . . . . . . . . . . . . . . . Known Exits Taken 11 | . . . . . 1 . 1 . 1 . 1 . 1 . . . . . . 1 . . . 1 1 1 1 1 . . Unknown Exits Taken 10 | 1 1 1 1 1 . . . . . . . . . . 1 1 1 1 1 . . . . . . . . . . . Scrap Searched 1 | . . . . 1 . . . . . . . . . . . . . . . . . . . . . . . . . . Spaces Dug 138 | . . . . 45 . . . . . 15 . . . . 4 . . . 2 2 7 8 . . . 10 19 18 . 8 Terrain Destroyed 1511 | . 100 37 31 81 77 35 45 27 . 28 . 32 14 1 17 14 5 9 189 10 63 118 126 10 84 29 30 84 72 143 Melee . | . . . . . . . . . . . . . . . . . . . . . . . . . . . . . . . Projectile 382 | . . . . 1 . . . . . . . 1 . 1 17 14 5 9 27 10 32 32 . 10 55 29 30 43 19 47 AOE 1127 | . 100 37 31 80 77 35 45 27 . 28 . 31 14 . . . . . 162 . 31 86 126 . 28 . . 41 52 96 Terrain Rammed . | . . . . . . . . . . . . . . . . . . . . . . . . . . . . . . . Walls Destroyed . | . . . . . . . . . . . . . . . . . . . . . . . . . . . . . . . Machines Disabled . | . . . . . . . . . . . . . . . . . . . . . . . . . . . . . . . Actions | -11 -10 -10 -9 -9 -8 -8 -8 -8 -7 -7 -7 -7 -6 -6 -6 -6 -6 -6 -6 -5 -5 -4 -4 -4 -3 -2 -2 -1 -1 -1 --------- Run | Yrd Mat Min Mat Min Mat Gar Mat Gar Fac Gar Fac Gar Fac Gar Fac Ext Cet Arc Hub Fac Gar Fac Was Fac Res Res Qua Acc Gar Acc Total 19383 | 9 691 357 1140 596 608 674 1109 742 110 878 290 946 395 297 889 752 435 151 322 419 1022 594 119 212 1704 548 665 861 736 1112 Wait 1299 | . 9 1 101 31 33 49 83 29 1 2 2 19 16 1 15 34 31 4 3 80 58 22 . 15 269 76 87 101 55 72 Move 15189 | 7 622 346 881 519 471 501 889 587 84 748 251 722 299 246 782 600 370 129 274 306 773 462 91 174 1232 410 499 630 443 841 Hop . | . . . . . . . . . . . . . . . . . . . . . . . . . . . . . . . Pick Up 266 | . 13 3 28 2 12 11 16 8 1 9 4 14 3 4 9 2 6 5 2 5 23 11 . . 17 9 6 8 22 13 Fast Attach 109 | . 1 . 2 . . . 3 5 1 4 . 13 2 . 8 4 2 . 1 3 7 13 1 2 7 2 4 3 14 7 Attach 134 | . 3 . 4 . 3 7 . 3 1 6 2 13 4 1 2 3 . 1 1 3 5 9 . . 14 2 1 10 18 18 Detach 64 | . . . . . . . 1 1 . 4 2 4 3 . 1 3 1 . 1 1 3 5 . . 7 . 1 3 11 12 Swap 426 | . 9 1 21 15 19 15 24 19 4 22 10 28 17 13 12 10 4 1 2 6 26 19 1 6 32 13 11 19 21 26 Drop 314 | . 3 . 30 5 17 7 27 15 2 9 3 14 5 7 18 4 8 5 1 6 33 9 1 1 21 9 12 1 19 22 Fire 1418 | 2 30 5 68 22 50 65 56 64 13 60 14 106 44 23 35 56 13 6 30 9 94 43 25 14 105 27 44 80 117 98 Melee . | . . . . . . . . . . . . . . . . . . . . . . . . . . . . . . . Ram 4 | . . . . . . . . . . . . . . . . 2 . . . . . . . . . . . . . 2 Kick 4 | . . . . . . . . . . . . . 2 . 2 . . . . . . . . . . . . . . . Crush 42 | . 1 1 5 2 3 . 10 . 3 . 2 . . . . . . . 7 . . . . . . . . 6 1 1 Escape Stasis 93 | . . . . . . 19 . 11 . 14 . 12 . 2 5 15 . . . . . . . . . . . . 15 . Rewire 21 | . . . . . . . . . . . . 1 . . . 19 . . . . . 1 . . . . . . . . Trap . | . . . . . . . . . . . . . . . . . . . . . . . . . . . . . . . Miscellaneous . | . . . . . . . . . . . . . . . . . . . . . . . . . . . . . . . Route ------- -11/Scrapyard -10/Materials (discovered 4 exits: *Mat x2 / [*Min x2]) -10/Mines (discovered 2 exits: *Mat x2) -9/Materials (discovered 3 exits: *Mat x2 / *Min) -9/Mines (discovered 2 exits: *Mat / [*Zio]) -8/Materials (discovered 2 exits: *Fac / Gar) -8/Garrison (discovered 2 exits: *Mat x2) -8/Materials (discovered 2 exits: *Fac / Gar) -8/Garrison (discovered 3 exits: *Fac x3) -7/Factory (discovered 2 exits: Sto / Gar) -7/Garrison (discovered 4 exits: *Fac x4) -7/Factory -7/Garrison (discovered 3 exits: *Fac x3) -6/Factory -6/Garrison -6/Factory (discovered 2 exits: *Fac / *Ext) -6/Extension (discovered 2 exits: *Fac / *Cet) -6/Cetus (discovered 2 exits: *Fac / *Arc) -6/Archives (discovered 2 exits: *Fac / *Hub) -6/Hub_04(d) (discovered 2 exits: *Fac x2) -5/Factory (discovered 2 exits: *Fac / Gar) -5/Garrison (discovered 3 exits: *Fac x3) -4/Factory -4/Waste -4/Factory -3/Research (discovered 2 exits: *Res x2) -2/Research (discovered 2 exits: *Qua x2) -2/Quarantine -1/Access (discovered 2 exits: Com / Gar) -1/Garrison -1/Access History --------- Turn | Location | Event 1 | -11/Scrapyard | Discovered new exit (range 3) 16 | -11/Scrapyard | Entered Materials 169 | -10/Materials | Discovered new exit (range 10) 226 | -10/Materials | Discovered new exit (range 16) 316 | -10/Materials | Build established: Mutant 472 | -10/Materials | Central database locked down 518 | -10/Materials | Discovered new exit (range 3) 847 | -10/Materials | Discovered new exit (range 7) 1467 | -10/Materials | Entered Mines 1528 | -10/Mines | Met a Derelict bent on vengeance 1578 | -10/Mines | Assembled infested the area 1583 | -10/Mines | Assisted by a Guerilla fighting off Assembled 1855 | -10/Mines | Discovered new exit (range 11) 2309 | -10/Mines | Discovered new exit (range 3) 2316 | -10/Mines | Entered Materials 2316 | -9/Materials | Evolved 2 slots: Propulsion x1, Utility x1 2639 | -9/Materials | Discovered new exit (range 13) 2982 | -9/Materials | Central database locked down 3068 | -9/Materials | Discovered new exit (range 9) 3437 | -9/Materials | Repaired Med. Armor Plating 3465 | -9/Materials | Repaired Lgt. Treads 3771 | -9/Materials | Discovered new exit (range 4) 4659 | -9/Materials | Entered Mines 4700 | -9/Mines | Discovered new exit (range 11) 4936 | -9/Mines | A Derelict revealed a hidden shortcut to a safe place 5296 | -9/Mines | Found the Drone Emporium 5304 | -9/Mines | Found Prototype Device 5304 | -9/Mines | Identified Thief Drone Bay 5367 | -9/Mines | Learned 2 Materials zone layouts 5549 | -9/Mines | Learned 2 Materials zone layouts 5644 | -9/Mines | Excavation squad dispatched 5644 | -9/Mines | A large section of the Mines collapsed 6023 | -9/Mines | Entered Materials 6023 | -8/Materials | Evolved 2 slots: Utility x1, Weapon x1 6305 | -8/Materials | Build established: Scavenger-Gunner 6703 | -8/Materials | Build established: Gunner 6809 | -8/Materials | Discovered new exit (range 8) 7272 | -8/Materials | Garrison activated, responded to threat 7369 | -8/Materials | Identified exit to Garrison 7369 | -8/Materials | Entered Garrison 7446 | -8/Garrison | Destroyed 10 combat bots 7449 | -8/Garrison | Triggered checkpoint 7665 | -8/Garrison | Garrison Relay disabled 7762 | -8/Garrison | Spotted B-75 Beast 7762 | -8/Garrison | Spotted B-75 Beast 7785 | -8/Garrison | Triggered checkpoint 7801 | -8/Garrison | Triggered checkpoint 7851 | -8/Garrison | Triggered checkpoint 7941 | -8/Garrison | Triggered checkpoint 8115 | -8/Garrison | Triggered checkpoint 8124 | -8/Garrison | Build established: Tank 8134 | -8/Garrison | Garrison Relay disabled 8285 | -8/Garrison | Discovered new exit (range 12) 8406 | -8/Garrison | Triggered checkpoint 8436 | -8/Garrison | Core integrity fell below 50% 8571 | -8/Garrison | Triggered checkpoint 8625 | -8/Garrison | Garrison Relay disabled 8731 | -8/Garrison | Installed Relay Interface Framework 8750 | -8/Garrison | Discovered new exit (range 13) 8852 | -8/Garrison | Entered Materials 9228 | -8/Materials | Repaired Enh. Autogun 9271 | -8/Materials | Repaired Hardlight Generator 9477 | -8/Materials | Discovered new exit (range 8) 9992 | -8/Materials | Build established: Scavenger-Tank 11238 | -8/Materials | Garrison activated, responded to threat 11266 | -8/Materials | Identified exit to Garrison 11266 | -8/Materials | Entered Garrison 11322 | -8/Garrison | Triggered checkpoint 11384 | -8/Garrison | Garrison Relay disabled 11494 | -8/Garrison | Triggered checkpoint 11616 | -8/Garrison | Destroyed 7 combat bots 11699 | -8/Garrison | Discovered new exit (range 12) 11754 | -8/Garrison | Triggered checkpoint 11788 | -8/Garrison | Garrison Relay disabled 11986 | -8/Garrison | Triggered checkpoint 12015 | -8/Garrison | Triggered checkpoint 12103 | -8/Garrison | Build established: Bothacker-Tank 12115 | -8/Garrison | Triggered checkpoint 12233 | -8/Garrison | Triggered checkpoint 12266 | -8/Garrison | Garrison Relay disabled 12411 | -8/Garrison | Discovered new exit (range 12) 12532 | -8/Garrison | Expanded RIF knowledge: Watcher Feeds 12772 | -8/Garrison | Triggered checkpoint 12856 | -8/Garrison | Discovered new exit (range 12) 12888 | -8/Garrison | Entered Factory 12888 | -7/Factory | Accompanied by 1 ally 12888 | -7/Factory | Evolved 2 slots: Utility x2 12889 | -7/Factory | Identified exit to Storage 12970 | -7/Factory | Garrison activated, responded to threat 13132 | -7/Factory | Identified exit to Garrison 13134 | -7/Factory | Entered Garrison 13139 | -7/Garrison | Triggered checkpoint 13364 | -7/Garrison | Triggered checkpoint 13371 | -7/Garrison | Garrison Relay disabled 13478 | -7/Garrison | Triggered checkpoint 13508 | -7/Garrison | Triggered checkpoint 13596 | -7/Garrison | Discovered new exit (range 9) 13670 | -7/Garrison | Triggered checkpoint 13705 | -7/Garrison | Garrison Relay disabled 13848 | -7/Garrison | Triggered checkpoint 14026 | -7/Garrison | Discovered new exit (range 10) 14068 | -7/Garrison | Triggered checkpoint 14093 | -7/Garrison | Garrison Relay disabled 14234 | -7/Garrison | Triggered checkpoint 14299 | -7/Garrison | Discovered new exit (range 9) 14342 | -7/Garrison | Triggered checkpoint 14385 | -7/Garrison | Garrison Relay disabled 14664 | -7/Garrison | Triggered checkpoint 14715 | -7/Garrison | Discovered new exit (range 5) 14970 | -7/Garrison | Expanded RIF knowledge: Patrol Navigation 15098 | -7/Garrison | Entered Factory 15098 | -7/Factory | Accompanied by 2 allies 15603 | -7/Factory | Garrison activated, responded to threat 15752 | -7/Factory | Identified exit to Garrison 15752 | -7/Factory | Entered Garrison 15752 | -7/Garrison | Accompanied by 2 allies 15770 | -7/Garrison | Expanded RIF knowledge: Command Fork 15913 | -7/Garrison | Triggered checkpoint 15969 | -7/Garrison | Garrison Relay disabled 16082 | -7/Garrison | Triggered checkpoint 16110 | -7/Garrison | Triggered checkpoint 16119 | -7/Garrison | Triggered checkpoint 16157 | -7/Garrison | Lost 9 allies 16208 | -7/Garrison | Discovered new exit (range 9) 16256 | -7/Garrison | Triggered checkpoint 16350 | -7/Garrison | Garrison Relay disabled 16522 | -7/Garrison | Spotted B-75 Beast 16549 | -7/Garrison | Spotted B-75 Beast 16577 | -7/Garrison | Destroyed B-75 Beast 16629 | -7/Garrison | Destroyed B-75 Beast 16630 | -7/Garrison | Core integrity fell below 50% 16657 | -7/Garrison | Lost 14 parts (3n4u7w) 16910 | -7/Garrison | Build established: Bothacker-Gunner 16966 | -7/Garrison | Discovered new exit (range 15) 17053 | -7/Garrison | Triggered checkpoint 17142 | -7/Garrison | Garrison Relay disabled 17316 | -7/Garrison | Triggered checkpoint 17394 | -7/Garrison | Garrison Relay disabled 17706 | -7/Garrison | Triggered checkpoint 17743 | -7/Garrison | Garrison Relay disabled 17869 | -7/Garrison | Discovered new exit (range 13) 17934 | -7/Garrison | Entered Factory 17934 | -6/Factory | Accompanied by 1 ally 17934 | -6/Factory | Evolved 2 slots: Propulsion x1, Utility x1 18275 | -6/Factory | Garrison activated, responded to threat 18284 | -6/Factory | Fabricated Hardcell Cannon (x2) 18653 | -6/Factory | Identified exit to Garrison 18653 | -6/Factory | Entered Garrison 18653 | -6/Garrison | Accompanied by 1 ally 18690 | -6/Garrison | Expanded RIF knowledge: Signal Jamming 18774 | -6/Garrison | Triggered checkpoint 18811 | -6/Garrison | Garrison Relay disabled 18897 | -6/Garrison | Spotted B-75 Beast 18910 | -6/Garrison | Allies destroyed B-75 Beast 18921 | -6/Garrison | Triggered checkpoint 19012 | -6/Garrison | Phase Generator disabled 19014 | -6/Garrison | Met a derelict Sapper fleeing the area 19028 | -6/Garrison | Garrison Relay disabled 19057 | -6/Garrison | Triggered checkpoint 19087 | -6/Garrison | Discovered new exit (range 13) 19110 | -6/Garrison | Spotted Executioner 19130 | -6/Garrison | Destroyed Executioner 19196 | -6/Garrison | Entered Factory 19196 | -6/Factory | Accompanied by 1 ally 19216 | -6/Factory | Build established: Scavenger-Gunner 19377 | -6/Factory | Fabricated Nova Cannon? 19549 | -6/Factory | Discovered new exit (range 13) 19617 | -6/Factory | Build established: Scavenger-Tank 19679 | -6/Factory | Discovered new exit (range 6) 20369 | -6/Factory | Build established: Bothacker-Tank 20749 | -6/Factory | Entered Extension 20749 | -6/Extension | Accompanied by 4 allies 20833 | -6/Extension | Lost 3 allies 20860 | -6/Extension | Rescued A7 21154 | -6/Extension | Rescued a captive Derelict 21265 | -6/Extension | Rescued a captive Derelict 21266 | -6/Extension | Rescued a captive Derelict 21462 | -6/Extension | Spotted B-75 Beast 21480 | -6/Extension | Destroyed B-75 Beast 21488 | -6/Extension | Spotted B-75 Beast 21499 | -6/Extension | Allies destroyed B-75 Beast 21539 | -6/Extension | Lost 4 allies 21589 | -6/Extension | Rescued a captive Derelict 21627 | -6/Extension | Rescued a captive Derelict 21628 | -6/Extension | Rescued a captive Derelict 21693 | -6/Extension | Rescued a captive Derelict 21704 | -6/Extension | Rescued a captive Derelict 21815 | -6/Extension | Rescued a captive Derelict 21900 | -6/Extension | Rescued a captive Derelict 21942 | -6/Extension | Discovered new exit (range 10) 21945 | -6/Extension | Discovered new exit (range 6) 21987 | -6/Extension | Entered Cetus 21987 | -6/Cetus | Accompanied by 12 allies (A7) 21992 | -6/Cetus | Acquired a Cetus Manufacturing Module code from A7 22013 | -6/Cetus | Spotted Cetus Guard 22015 | -6/Cetus | Spotted Cetus Guard 22016 | -6/Cetus | Spotted Cetus Guard 22021 | -6/Cetus | Spotted Cetus Guard 22025 | -6/Cetus | Allies destroyed Cetus Guard 22027 | -6/Cetus | Allies destroyed Cetus Guard 22034 | -6/Cetus | Allies destroyed Cetus Guard 22036 | -6/Cetus | Allies destroyed Cetus Guard 22062 | -6/Cetus | Extracted ID and sensor layout for unrecognized location from A7's data core 22119 | -6/Cetus | Started Cetus Manufacturing Module 22144 | -6/Cetus | Manufactured an Enhanced Grunt 22152 | -6/Cetus | Door terminal overloaded 22169 | -6/Cetus | Manufactured an Enhanced Grunt 22194 | -6/Cetus | Manufactured an Enhanced Grunt 22219 | -6/Cetus | Manufactured an Enhanced Grunt 22244 | -6/Cetus | Manufactured an Enhanced Grunt 22289 | -6/Cetus | Discovered new exit (range 15) 22318 | -6/Cetus | Discovered new exit (range 27) 22330 | -6/Cetus | Spotted Cetus Guard 22333 | -6/Cetus | Spotted Cetus Guard 22333 | -6/Cetus | Allies destroyed Cetus Guard 22334 | -6/Cetus | Spotted Cetus Guard 22336 | -6/Cetus | Destroyed Cetus Guard 22336 | -6/Cetus | Spotted Cetus Guard 22340 | -6/Cetus | Allies destroyed Cetus Guard 22346 | -6/Cetus | Allies destroyed Cetus Guard 22358 | -6/Cetus | Met Revision 17 22419 | -6/Cetus | Build established: Commander-Tank 22664 | -6/Cetus | Entered Archives 22664 | -6/Archives | Accompanied by 14 allies 22707 | -6/Archives | Discovered new exit (range 15) 22727 | -6/Archives | Lost 5 allies 22775 | -6/Archives | Unable to access archive contents 22780 | -6/Archives | Discovered new exit (range 16) 22902 | -6/Archives | Entered Hub_04(d) 22902 | -6/Hub_04(d) | Accompanied by 9 allies 23043 | -6/Hub_04(d) | Build established: Scavenger-Tank 23237 | -6/Hub_04(d) | Spotted B-75 Beast 23252 | -6/Hub_04(d) | First assault squad dispatched 23253 | -6/Hub_04(d) | Allies destroyed B-75 Beast 23275 | -6/Hub_04(d) | Discovered new exit (range 9) 23351 | -6/Hub_04(d) | Lost 3 allies 23429 | -6/Hub_04(d) | Network Hub disabled 23429 | -6/Hub_04(d) | Discovered new exit (range 7) 23437 | -6/Hub_04(d) | Spotted Lightning 23445 | -6/Hub_04(d) | Entered Factory 23445 | -5/Factory | Evolved 2 slots: Power x1, Utility x1 23468 | -5/Factory | Lost 3 allies 23938 | -5/Factory | Discovered new exit (range 5) 24082 | -5/Factory | Identified exit to Garrison 24082 | -5/Factory | Entered Garrison 24125 | -5/Garrison | Triggered checkpoint 24288 | -5/Garrison | Spotted B-75 Beast 24299 | -5/Garrison | Triggered checkpoint 24332 | -5/Garrison | Destroyed B-75 Beast 24376 | -5/Garrison | Triggered checkpoint 24501 | -5/Garrison | Found embedded Infiltrators 24512 | -5/Garrison | Triggered checkpoint 24576 | -5/Garrison | Discovered new exit (range 13) 24589 | -5/Garrison | Triggered checkpoint 24676 | -5/Garrison | Garrison Relay disabled 24825 | -5/Garrison | Triggered checkpoint 24894 | -5/Garrison | Triggered checkpoint 24914 | -5/Garrison | Discovered new exit (range 13) 24999 | -5/Garrison | Discovered new exit (range 36) 24999 | -5/Garrison | Discovered new exit (range 32) 24999 | -5/Garrison | Discovered new exit (range 39) 25028 | -5/Garrison | Triggered checkpoint 25044 | -5/Garrison | Expanded RIF knowledge: Hotswap 25131 | -5/Garrison | Spotted B-75 Beast 25140 | -5/Garrison | Destroyed B-75 Beast 25346 | -5/Garrison | Triggered checkpoint 25428 | -5/Garrison | Triggered checkpoint 25517 | -5/Garrison | Expanded RIF knowledge: Command Fork 25753 | -5/Garrison | Entered Factory 25753 | -4/Factory | Evolved 2 slots: Utility x1, Weapon x1 26253 | -4/Factory | First assault squad dispatched 26740 | -4/Factory | Repaired Adv. Heavy Siege Treads 26771 | -4/Factory | Found Prototype Launcher 26771 | -4/Factory | Identified Mni. Smartbomb Launcher 26851 | -4/Factory | System corruption reached 10% 26894 | -4/Factory | Repaired Broken Adv. Heavy Siege Treads? 27010 | -4/Factory | Sucked down chute 27010 | -4/Factory | Entered Waste 27025 | -4/Waste | EMP discharged 27032 | -4/Waste | Spotted C-40 Crusher 27033 | -4/Waste | Spotted C-40 Crusher 27033 | -4/Waste | Spotted C-40 Crusher 27039 | -4/Waste | Destroyed C-40 Crusher 27045 | -4/Waste | Spotted C-40 Crusher 27047 | -4/Waste | Destroyed C-40 Crusher 27049 | -4/Waste | Destroyed C-40 Crusher 27052 | -4/Waste | Destroyed C-40 Crusher 27064 | -4/Waste | Spotted C-40 Crusher 27074 | -4/Waste | Destroyed C-40 Crusher 27077 | -4/Waste | Spotted C-40 Crusher 27096 | -4/Waste | Destroyed C-40 Crusher 27125 | -4/Waste | EMP discharged 27125 | -4/Waste | System corruption reached 30% 27225 | -4/Waste | EMP discharged 27241 | -4/Waste | Discovered new exit (range 15) 27276 | -4/Waste | Entered Factory 27563 | -4/Factory | Discovered new exit (range 9) 27698 | -4/Factory | Identified exit to Research 27714 | -4/Factory | Entered Research 27714 | -3/Research | Evolved 2 slots: Propulsion x2 27773 | -3/Research | Spotted B-86 Titan 27809 | -3/Research | Destroyed B-86 Titan 27914 | -3/Research | Revision forces began assault on 0b10 27963 | -3/Research | Met up with Revision 17++ 28014 | -3/Research | Discovered new exit (range 58) 28056 | -3/Research | Repaired Broken Centrium Heavy Treads 28281 | -3/Research | Build established: Scavenger-Gunner 28300 | -3/Research | Identified exit to Research 28414 | -3/Research | Research terminal network offline 28418 | -3/Research | Lost 4 allies 28489 | -3/Research | Spotted Striker 28502 | -3/Research | Destroyed Striker 28590 | -3/Research | Build established: Scavenger-Skirmisher 28666 | -3/Research | Found Gamma Bomb Array 29096 | -3/Research | Spotted Striker 29098 | -3/Research | Spotted Striker 29109 | -3/Research | Destroyed Striker 29117 | -3/Research | Destroyed Striker 29539 | -3/Research | Found Fusion Bomb Launcher 29778 | -3/Research | Discovered exit to Research (range 6) 29816 | -3/Research | Spotted Executioner 29828 | -3/Research | Spotted Striker 29834 | -3/Research | Destroyed Striker 29850 | -3/Research | Destroyed Executioner 29858 | -3/Research | Lost 3 allies 29945 | -3/Research | Spotted Striker 29947 | -3/Research | Spotted Striker 29957 | -3/Research | Destroyed Striker 29969 | -3/Research | Destroyed Striker 30005 | -3/Research | Lost 4 parts (1p2u1w) 30068 | -3/Research | Spotted Striker 30069 | -3/Research | Spotted Striker 30101 | -3/Research | Destroyed Striker 30109 | -3/Research | Destroyed Striker 30129 | -3/Research | Found Imp. Powered Armor 30237 | -3/Research | Spotted Striker 30240 | -3/Research | Spotted Striker 30249 | -3/Research | Destroyed Striker 30276 | -3/Research | Lost 3 allies 30278 | -3/Research | Build established: Scavenger-Tank 30323 | -3/Research | Spotted Striker 30336 | -3/Research | Destroyed Striker 30414 | -3/Research | Entered another Research area 30414 | -2/Research | Evolved 2 slots: Power x1, Utility x1 30671 | -2/Research | Identified exit to Quarantine 30772 | -2/Research | Build established: Scavenger-Skirmisher 31323 | -2/Research | Entered Quarantine 31401 | -2/Quarantine | Cryocooling Duct disabled 31416 | -2/Quarantine | Ambient heat levels rising (+20) 31416 | -2/Quarantine | Non-combat units ordered to evacuate 31474 | -2/Quarantine | Found Alien Artifact 31700 | -2/Quarantine | Found Quantum Capacitor 32083 | -2/Quarantine | Identified exit to Access 32304 | -2/Quarantine | Cryocooling Duct disabled 32313 | -2/Quarantine | Entered Access 32313 | -1/Access | Evolved 2 slots: Utility x2 32396 | -1/Access | Identified exit to Command 32828 | -1/Access | Build established: Scavenger-Tank 32861 | -1/Access | Spotted B-99 Colossus 33084 | -1/Access | System corruption reached 10% 33361 | -1/Access | Found Prototype Protection 33563 | -1/Access | First assault squad dispatched 33635 | -1/Access | Identified exit to Garrison 33644 | -1/Access | Entered Garrison 33755 | -1/Garrison | Rewired Striker 33759 | -1/Garrison | Rewired Striker 33825 | -1/Garrison | Garrison Relay disabled 33904 | -1/Garrison | Triggered checkpoint 33971 | -1/Garrison | Spotted B-99 Colossus 33974 | -1/Garrison | Lost 3 allies 34012 | -1/Garrison | Destroyed 8 combat bots 34014 | -1/Garrison | Lost 4 parts (1p2u1w) 34071 | -1/Garrison | Destroyed B-99 Colossus 34088 | -1/Garrison | Lost 5 parts (1p1n2u1w) 34099 | -1/Garrison | Triggered checkpoint 34189 | -1/Garrison | Lost 5 parts (1p1n2u1w) 34221 | -1/Garrison | Found Prototype Ballistic Gun 34382 | -1/Garrison | Triggered checkpoint 34432 | -1/Garrison | Discovered new exit (range 13) 34517 | -1/Garrison | Triggered checkpoint 34580 | -1/Garrison | Garrison Relay disabled 34848 | -1/Garrison | Entered Access 34848 | -1/Access | Accompanied by 1 ally 34921 | -1/Access | Found Adv. Powered Armor 35141 | -1/Access | First assault squad dispatched 35180 | -1/Access | Garrison activated, responded to threat 35280 | -1/Access | Found Quantum Capacitor 35518 | -1/Access | Garrison activated, responded to threat 35634 | -1/Access | System corruption reached 30% 35872 | -1/Access | Identified Centrium Heavy Armor Plating 35892 | -1/Access | Lost 4 parts (2p2u) 35913 | -1/Access | High security lockdown imminent 35943 | -1/Access | Destroyed 18 combat bots 35993 | -1/Access | High security lockdown engaged 35999 | -1/Access | Energy Cycler disabled 36046 | -1/Access | Lost 5 parts (1n3u1w) 36106 | -1/Access | Spotted Executioner 36113 | -1/Access | Core integrity fell below 50% 36129 | -1/Access | Core integrity fell below 20% 36144 | -1/Access | Destroyed by Y-72 Warden with Quantum Rifle Last Messages --------------- 36107_ System corrupted: Matter fused (-7). 36107_ Slug penetrates Wall. 36110_ Penetrated by Slug. 36110_ Relay Coupler [Grunt] destroyed. 36110_ Penetrated by Slug. 36112_ K-01 Serf collects debris. 36112_ Penetrated by Slug. 36113_ ALERT: Assault forces dispatched. 36114_ Penetrated by Slug. 36114_ Slug penetrates Wall. 36117_ Penetrated by Slug. 36117_ Slug penetrates Wall. 36119_ K-01 Serf collects debris. 36121_ Penetrated by Slug. 36121_ Slug penetrates Wall. 36126_ System corrupted: Energy discharge (-23). 36132_ Slug penetrates Wall. 36134_ Penetrated by Slug. 36140_ E-15 Imp destroyed. 36142_ System corrupted: Heat flow error (+143). Map ----- +----------------------------------------------------+ | ???????????????????????????????????? | | ???????????????????????????????????? | | ???????????????????????????????????? | | ???????????????????????????????????? | | ######### ???????????????????????????????????? | | #?????????????????????????????????????????????? | | #?????????????????????????????????????????????? | | #?????????????????????????????????????????????? | | #?????????????????????????????????????????????? | | " #?????????????????????????????????????????????? | | #????????????????????? ???????????????????????? | | #????????????????????? ???????????????????????? | | #?????????????????????Y???????????????????????? | | #????????????????????? ???????????????????????? | | ####????????? ??????????? ???????????????????????? | | ????????????# #?????????? #??????????????????????? | | ?????????#+## #?????????# #??????????????????????? | | ?????????# #?????????# #??????????????????????? | | ?????????# #?????????# #??????????????????????? | | ?????????# #?????????# #??????????????????????? | | ########## ########+## #??????????????????????? | | +??????????????????????? | | #??????????????????????? | | = #??????????????????????? | | s ###?#########??????????? | | s @ # == #??????????? | | ## s # == #??????????? | | ## p + = #??????????? | | ## # * #??????????? | | + %! #* #??????????? | | ### ######? % #??????????? | | #?# #?????? #??????????? | | #?######################??????? #??????????? | | #??????????????????????????????########??????????? | | #????????????????????????????????????????????????? | | #????????????????????????????????????????????????? | | #????????????????????????????????????????????????? | | #????????????????????????????????????????????????? | | #????????????????????????????????????????????????? | | #????????????????????????????????????????????????? | | #????????????????????????????????????????????????? | | #????????????????????????????????????????????????? | | ?????????????????????????????????????????????????? | | ?????????????????????????????????????????????????? | | ?????????????????????????????????????????????????? | | ?????????????????????????????????????????????????? | | ?????????????????????????????????????????????????? | | ?????????????????????????????????????????????????? | | ?????????????????????????????????????????????????? | | ?????????????????????????????????????????????????? | +----------------------------------------------------+ Best States ------------- Heat Dissipation 121 Coolant Potential 65 Energy Generation 63 Energy Capacity 1325 Matter Stores 300 Matter Capacity 300 Sight Range 16 Robot Scan Range 18 Terrain Scan Range 20 Terrain Scan Density 85 Jamming Range 12 Armor Coverage 2000 Propulsion Shielding 33 Weapon Cycling 25 Phase Shifting 15 Evasion (%) 63 Targeting Accuracy 8 Melee Accuracy 6 Launcher Accuracy 30 Target Analysis 9 Recoil Reduction 6 Matter Filtering 30 Kinecelleration 40 Salvage Targeting 2 Offensive Hacking 12 Relay Coupler Types 3 Relay Coupler Value 103 Authchip Count 3 Item Schematics ----------------- Hvy. Reactive Plating | -6/Extension | Hacked Robot Schematics ------------------ None Fabricated ------------ Hardcell Cannon | x2 | -6/Factory | Preloaded Nova Cannon | x2 | -6/Factory | Preloaded Alien Tech Used ----------------- None Achievements -------------- Factory Defaults Infiltrator Just Shoot The Terminal Pwned Challenges ------------ None Game ------ Seed OvertunedWavePenetrator Manual? 0 Play Time 07:08:31 Cumulative 176.1 hours Start 2024.09.07 @ 00:07:59 End 2024.09.09 @ 23:04:22 Sessions 17 Manual Loads 0 Difficulty Rogue Special Mode None Game No. 87 Rogue 85 Adventurer 0 Explorer 2 Win Type - Total 10 Types 10/0/0/0/0/0/0/0/0 Lore% 59 Gallery% 72 Achievement% 59 Wizard Run 0 Options --------- Layout 0 ASCII 0 Keyboard 1 Movement Numpad Keybinds 0 Fullscreen 1 Font 24/Smallcaps Map View 76x50 Zoom Use 0% Tactical HUD 1 Map Filters NONE Filters NONE Steam 1 RUN: dac6822c-2601-4bd5-a32b-009cc56025c1